fUSD/lending_fUSD_20250107
["ID","MTS","AMOUNT","RATE_DAILY","PERIOD"]
[347945895,1736233321727,-603.47,0.00012265,2]
[347945896,1736233321772,-500.0,0.00012265,2]
[347945897,1736233321814,-500.0,0.00012265,2]
[347945898,1736233321855,-631.58,0.00012265,2]
[347945899,1736233321896,-3005.19,0.00012265,2]
[347945900,1736233321937,-500.0,0.00012265,2]
[347945901,1736233321977,-1108.7,0.00012265,2]
[347945902,1736233322020,-678.22,0.00012265,2]
[347945903,1736233322061,-980.72,0.00012265,2]
[347945904,1736233322101,-516.92,0.00012265,2]
[347945905,1736233322142,-325.99724831,0.00012265,2]
[347945906,1736233322182,-874.05,0.00012265,2]
[347945907,1736233322226,-500.0,0.00012265,2]
[347945908,1736233322270,-500.0,0.00012265,2]
[347945909,1736233322313,-150.0,0.00012279,2]
[347945910,1736233322353,-10006.61,0.0001228,2]
[347945911,1736233322395,-150.0,0.00012292,2]
[347945912,1736233322437,-500.0,0.00012292,2]
[347945913,1736233322480,-3892.4632833,0.00012292,2]
[347945914,1736233322524,-3638.50927,0.00012292,2]
[347945915,1736233322567,-3384.5552567,0.00012292,2]
[347945916,1736233322611,-3130.6012434,0.00012292,2]
[347945917,1736233322655,-500.0,0.00012292,2]
[347945918,1736233322697,-150.0,0.00012292,2]
[347945919,1736233322740,-150.0,0.00012292,2]
[347945920,1736233322783,-1068.7684702,0.00012292,2]
[347945921,1736233322827,-999.0393494,0.00012292,2]
[347945922,1736233322872,-929.3102287,0.00012292,2]
[347945923,1736233322917,-859.5811079,0.00012292,2]
[347945924,1736233322961,-150.06066961,0.00012292,2]
[347945925,1736233323005,-500.0,0.00012292,2]
[347945926,1736233323055,-150.0,0.00012292,2]
[347945927,1736233323101,-3521.0,0.00012292,2]
[347945928,1736233323146,-2000.0,0.00012299,2]
[347945929,1736233323192,-2000.0,0.00012299,2]
[347945930,1736233323241,-2000.0,0.00012299,2]
[347945931,1736233323288,-2000.0,0.00012299,2]
[347945932,1736233323338,-6402580.76317835,0.000123,2]
[347945933,1736233323389,-7292268.06651625,0.000123,2]
[347945934,1736233327394,2000.0,0.000141,54]
[347945949,1736233831636,-977.08,8.219e-05,2]
[347945950,1736233831647,-500.0,8.22e-05,2]
[347945951,1736233831656,-2500.0,8.22e-05,2]
[347945952,1736233831665,-1000.0,8.22e-05,2]
[347945953,1736233831675,-250.0,9.065e-05,2]
[347945954,1736233831685,-188.16,9.098e-05,2]
[347945955,1736233831694,-1000.0,9.265e-05,2]
[347945956,1736233831704,-2500.0,9.59e-05,2]
[347945957,1736233831714,-1000.0,9.59e-05,2]
[347945958,1736233831724,-150.0,9.592e-05,2]
[347945959,1736233831734,-500.0,9.593e-05,2]
[347945960,1736233831743,-500.0,9.593e-05,2]
[347945961,1736233831752,-500.0,9.593e-05,2]
[347945962,1736233831761,-500.0,9.593e-05,2]
[347945963,1736233831770,-1000.0,9.593e-05,2]
[347945964,1736233831780,-500.0,9.593e-05,2]
[347945965,1736233831790,-500.0,9.593e-05,2]
[347945966,1736233831799,-500.0,9.593e-05,2]
[347945967,1736233831808,-500.0,9.593e-05,2]
[347945968,1736233831817,-6559.6838,9.667e-05,2]
[347945969,1736233831827,-833.1583,9.667e-05,2]
[347945970,1736233831836,-1284.8848,9.667e-05,2]
[347945971,1736233831846,-37384.5341,9.696e-05,2]
[347945972,1736233831855,-1000.0,9.696e-05,2]
[347945973,1736233831865,-500.0,9.699e-05,2]
[347945974,1736233831876,-408.6047,9.699e-05,2]
[347945975,1736233831886,-2500.0,9.699e-05,2]
[347945976,1736233831895,-5000.0,9.7e-05,2]
[347945977,1736233831904,-8739.30683616,9.7e-05,2]
[347945978,1736233832001,-72180.81100587,9.7e-05,2]
[347945979,1736233832013,-1222.11962353,9.7e-05,2]
[347946005,1736233837602,-12285.07953444,9.7e-05,2]
[347946006,1736233837612,-3450.0,9.767e-05,2]
[347946007,1736233837623,-500.0,9.796e-05,2]
[347946008,1736233837633,-500.0,9.796e-05,2]
[347946009,1736233837642,-500.0,9.796e-05,2]
[347946010,1736233837653,-293.09470526,9.796e-05,2]
[347946011,1736233837663,-500.0,9.796e-05,2]
[347946012,1736233837890,-500.0,9.796e-05,2]
[347946013,1736233837900,-500.0,9.796e-05,2]
[347946014,1736233837912,-500.0,9.796e-05,2]
[347946015,1736233837921,-500.0,9.796e-05,2]
[347946016,1736233837930,-500.0,9.796e-05,2]
[347946017,1736233837940,-500.0,9.796e-05,2]
[347946018,1736233837949,-500.0,9.796e-05,2]
[347946019,1736233837959,-500.0,9.796e-05,2]
[347946020,1736233837967,-500.0,9.796e-05,2]
[347946021,1736233837977,-500.0,9.796e-05,2]
[347946022,1736233837985,-500.0,9.796e-05,2]
[347946023,1736233837995,-500.0,9.796e-05,2]
[347946024,1736233838004,-500.0,9.796e-05,2]
[347946025,1736233838013,-500.0,9.796e-05,2]
[347946026,1736233838022,-500.0,9.796e-05,2]
[347946027,1736233838031,-500.0,9.796e-05,2]
[347946028,1736233838041,-500.0,9.796e-05,2]
[347946029,1736233838050,-500.0,9.796e-05,2]
[347946030,1736233838059,-167.44955686,9.796e-05,2]
[347946031,1736233838068,-500.0,9.796e-05,2]
[347946032,1736233838077,-500.0,9.796e-05,2]
[347946033,1736233838087,-500.0,9.796e-05,2]
[347946034,1736233838095,-500.0,9.796e-05,2]
[347946035,1736233838104,-500.0,9.796e-05,2]
[347946036,1736233838113,-499.84482588,9.796e-05,2]
[347946037,1736233838125,-0.15517412,9.796e-05,2]
[347946038,1736233838136,-500.0,9.796e-05,2]
[347946039,1736233838145,-500.0,9.796e-05,2]
[347946040,1736233838154,-500.0,9.796e-05,2]
[347946041,1736233838163,-500.0,9.796e-05,2]
[347946042,1736233838172,-500.0,9.796e-05,2]
[347946043,1736233838184,-500.0,9.796e-05,2]
[347946044,1736233838193,-500.0,9.796e-05,2]
[347946045,1736233838203,-500.0,9.796e-05,2]
[347946046,1736233838212,-500.0,9.796e-05,2]
[347946047,1736233838222,-500.0,9.796e-05,2]
[347946048,1736233838231,-500.0,9.796e-05,2]
[347946049,1736233838240,-500.0,9.796e-05,2]
[347946050,1736233838249,-500.0,9.796e-05,2]
[347946051,1736233838259,-500.0,9.796e-05,2]
[347946052,1736233838267,-500.0,9.796e-05,2]
[347946053,1736233838276,-500.0,9.796e-05,2]
[347946054,1736233838285,-500.0,9.796e-05,2]
[347946055,1736233838294,-426.46030576,9.796e-05,2]
[347946057,1736233839751,-124.19669424,9.796e-05,2]
[347946058,1736233839761,-441.00396046,9.796e-05,2]
[347946059,1736233839885,-58.99603954,9.796e-05,2]
[347946060,1736233839895,-500.0,9.796e-05,2]
[347946061,1736233839904,-500.0,9.796e-05,2]
[347946062,1736233839913,-102.33536953,9.796e-05,2]
[347946063,1736233839996,-806.34000009,9.796e-05,2]
[347946306,1736233842598,-16.38463038,9.796e-05,2]
[347946308,1736233842608,-500.0,9.796e-05,2]
[347946310,1736233842618,-500.0,9.796e-05,2]
[347946312,1736233842628,-500.0,9.796e-05,2]
[347946314,1736233842642,-500.0,9.796e-05,2]
[347946316,1736233842651,-500.0,9.796e-05,2]
[347946318,1736233842661,-389.94665641,9.796e-05,2]
[347946320,1736233842673,-110.05334359,9.796e-05,2]
[347946322,1736233842682,-500.0,9.796e-05,2]
[347946324,1736233842691,-1.97002226,9.798e-05,2]
[347946334,1736233842776,-498.02997774,9.798e-05,2]
[347946336,1736233842786,-525.05,9.798e-05,2]
[347946338,1736233842795,-500.0,9.798e-05,2]
[347946340,1736233842805,-500.0,9.798e-05,2]
[347946342,1736233842814,-500.0,9.798e-05,2]
[347946344,1736233842824,-500.0,9.798e-05,2]
[347946346,1736233842833,-596.12,9.798e-05,2]
[347946348,1736233842843,-500.0,9.798e-05,2]
[347946350,1736233842852,-513.31,9.798e-05,2]
[347946352,1736233842861,-500.0,9.798e-05,2]
[347946354,1736233842871,-500.0,9.798e-05,2]
[347946356,1736233842880,-500.0,9.798e-05,2]
[347946358,1736233842891,-440.66031262,9.798e-05,2]
[347946360,1736233842901,-500.0,9.798e-05,2]
[347946362,1736233842910,-500.0,9.798e-05,2]
[347946364,1736233842920,-500.0,9.798e-05,2]
[347946366,1736233842929,-500.0,9.798e-05,2]
[347946368,1736233842938,-500.0,9.798e-05,2]
[347946370,1736233842947,-534.69,9.798e-05,2]
[347946372,1736233842957,-500.0,9.798e-05,2]
[347946374,1736233842966,-500.0,9.798e-05,2]
[347946376,1736233842975,-500.0,9.798e-05,2]
[347946378,1736233842985,-500.0,9.798e-05,2]
[347946380,1736233842995,-500.0,9.798e-05,2]
[347946382,1736233843004,-500.0,9.798e-05,2]
[347946384,1736233843014,-500.0,9.798e-05,2]
[347946386,1736233843023,-500.0,9.798e-05,2]
[347946388,1736233843033,-588.70403065,9.798e-05,2]
[347946390,1736233843042,-500.0,9.798e-05,2]
[347946392,1736233843051,-500.0,9.798e-05,2]
[347946394,1736233843060,-500.0,9.798e-05,2]
[347946396,1736233843069,-1944.58,9.798e-05,2]
[347946398,1736233843079,-500.0,9.798e-05,2]
[347946400,1736233843087,-500.0,9.799e-05,2]
[347946402,1736233843097,-500.0,9.799e-05,2]
[347946404,1736233843107,-500.0,9.799e-05,2]
[347946406,1736233843116,-401.58067899,9.799e-05,2]
[347946409,1736233843127,-98.41932101,9.799e-05,2]
[347946412,1736233843138,-500.0,9.799e-05,2]
[347946415,1736233843147,-500.0,9.799e-05,2]
[347946417,1736233843156,-291.35,9.799e-05,2]
[347946419,1736233843166,-500.0,9.799e-05,2]
[347946421,1736233843175,-175.6,9.799e-05,2]
[347946423,1736233843188,-500.0,9.799e-05,2]
[347946425,1736233843198,-500.0,9.799e-05,2]
[347946427,1736233843207,-390.07606969,9.799e-05,2]
[347946429,1736233843219,-500.0,9.799e-05,2]
[347946432,1736233843231,-200.11,9.799e-05,2]
[347946434,1736233843244,-500.0,9.799e-05,2]
[347946436,1736233843256,-500.0,9.799e-05,2]
[347946438,1736233843267,-500.0,9.799e-05,2]
[347946440,1736233843279,-500.0,9.799e-05,2]
[347946443,1736233843289,-500.0,9.799e-05,2]
[347946445,1736233843299,-500.0,9.799e-05,2]
[347946447,1736233843310,-500.0,9.799e-05,2]
[347946449,1736233843321,-500.0,9.799e-05,2]
[347946451,1736233843332,-602.19,9.799e-05,2]
[347946453,1736233843343,-500.0,9.799e-05,2]
[347946455,1736233843353,-627.08,9.799e-05,2]
[347946458,1736233843365,-500.0,9.799e-05,2]
[347946460,1736233843376,-500.0,9.799e-05,2]
[347946462,1736233843388,-500.0,9.799e-05,2]
[347946464,1736233843399,-500.0,9.799e-05,2]
[347946466,1736233843413,-500.0,9.799e-05,2]
[347946469,1736233843427,-500.0,9.799e-05,2]
[347946471,1736233843439,-500.0,9.799e-05,2]
[347946473,1736233843449,-406.25393031,9.799e-05,2]
[347946475,1736233843460,-500.0,9.799e-05,2]
[347946477,1736233843471,-500.0,9.799e-05,2]
[347946479,1736233843481,-500.0,9.799e-05,2]
[347946481,1736233843492,-500.0,9.799e-05,2]
[347946483,1736233843502,-500.0,9.799e-05,2]
[347946485,1736233843512,-500.0,9.799e-05,2]
[347946488,1736233843524,-500.0,9.799e-05,2]
[347946490,1736233843536,-500.0,9.799e-05,2]
[347946492,1736233843547,-500.0,9.799e-05,2]
[347946494,1736233843558,-500.0,9.799e-05,2]
[347946496,1736233843570,-500.0,9.799e-05,2]
[347946498,1736233843582,-500.0,9.799e-05,2]
[347946501,1736233843593,-500.0,9.799e-05,2]
[347946502,1736233843605,-500.0,9.799e-05,2]
[347946503,1736233843617,-500.0,9.799e-05,2]
[347946505,1736233843629,-500.0,9.799e-05,2]
[347946507,1736233843641,-500.0,9.799e-05,2]
[347946509,1736233843652,-500.0,9.799e-05,2]
[347946511,1736233843664,-500.0,9.799e-05,2]
[347946513,1736233843675,-500.0,9.799e-05,2]
[347946516,1736233843689,-500.0,9.799e-05,2]
[347946518,1736233843700,-500.0,9.799e-05,2]
[347946520,1736233843711,-500.0,9.799e-05,2]
[347946521,1736233843722,-500.0,9.799e-05,2]
[347946522,1736233843733,-500.0,9.799e-05,2]
[347946523,1736233843744,-500.0,9.799e-05,2]
[347946524,1736233843754,-352.63392716,9.799e-05,2]
[347946525,1736233843766,-500.0,9.799e-05,2]
[347946526,1736233843777,-500.0,9.799e-05,2]
[347946527,1736233843787,-318.97017049,9.799e-05,2]
[347946528,1736233843798,-500.0,9.799e-05,2]
[347946529,1736233843809,-500.0,9.799e-05,2]
[347946530,1736233843820,-499.37670087,9.799e-05,2]
[347946531,1736233843832,-500.0,9.799e-05,2]
[347946532,1736233843843,-500.0,9.799e-05,2]
[347946533,1736233843854,-500.0,9.799e-05,2]
[347946534,1736233843865,-500.0,9.799e-05,2]
[347946535,1736233843876,-500.0,9.799e-05,2]
[347946536,1736233843887,-500.0,9.799e-05,2]
[347946537,1736233843898,-500.0,9.799e-05,2]
[347946538,1736233843907,-425.27648481,9.799e-05,2]
[347946539,1736233843917,-500.0,9.799e-05,2]
[347946540,1736233843927,-500.0,9.799e-05,2]
[347946541,1736233843938,-500.0,9.799e-05,2]
[347946543,1736233843948,-500.0,9.799e-05,2]
[347946545,1736233843960,-500.0,9.799e-05,2]
[347946548,1736233843972,-500.0,9.799e-05,2]
[347946550,1736233843985,-500.0,9.799e-05,2]
[347946552,1736233843995,-500.0,9.799e-05,2]
[347946554,1736233844005,-500.0,9.799e-05,2]
[347946556,1736233844015,-500.0,9.799e-05,2]
[347946558,1736233844024,-500.0,9.799e-05,2]
[347946560,1736233844034,-500.0,9.799e-05,2]
[347946562,1736233844044,-500.0,9.799e-05,2]
[347946564,1736233844055,-570.3,9.799e-05,2]
[347946566,1736233844066,-500.0,9.799e-05,2]
[347946568,1736233844078,-500.0,9.799e-05,2]
[347946571,1736233844089,-280.2460035,9.799e-05,2]
[347946573,1736233844101,-502.62,9.799e-05,2]
[347946575,1736233844112,-500.0,9.799e-05,2]
[347946576,1736233844122,-500.0,9.799e-05,2]
[347946578,1736233844133,-500.0,9.799e-05,2]
[347946580,1736233844144,-502.38732398,9.799e-05,2]
[347946582,1736233844155,-500.0,9.799e-05,2]
[347946584,1736233844165,-500.0,9.799e-05,2]
[347946586,1736233844176,-594.02,9.799e-05,2]
[347946588,1736233844190,-537.25,9.799e-05,2]
[347946590,1736233844200,-500.0,9.799e-05,2]
[347946592,1736233844211,-500.0,9.799e-05,2]
[347946595,1736233844223,-500.0,9.799e-05,2]
[347946597,1736233844234,-500.0,9.799e-05,2]
[347946599,1736233844244,-500.0,9.799e-05,2]
[347946600,1736233844257,-500.0,9.799e-05,2]
[347946601,1736233844268,-500.0,9.799e-05,2]
[347946602,1736233844279,-500.0,9.799e-05,2]
[347946603,1736233844290,-388.96124199,9.799e-05,2]
[347946604,1736233844301,-574.78,9.799e-05,2]
[347946605,1736233844311,-500.0,9.799e-05,2]
[347946606,1736233844322,-500.0,9.799e-05,2]
[347946607,1736233844332,-500.0,9.799e-05,2]
[347946608,1736233844344,-500.0,9.799e-05,2]
[347946609,1736233844355,-500.0,9.799e-05,2]
[347946610,1736233844366,-504.83186551,9.799e-05,2]
[347946612,1736233844376,-501.7907926,9.799e-05,2]
[347946614,1736233844386,-500.0,9.799e-05,2]
[347946616,1736233844399,-500.0,9.799e-05,2]
[347946618,1736233844411,-500.0,9.799e-05,2]
[347946620,1736233844421,-627.39543071,9.799e-05,2]
[347946622,1736233844433,-500.0,9.799e-05,2]
[347946624,1736233844444,-500.0,9.799e-05,2]
[347946626,1736233844454,-500.0,9.799e-05,2]
[347946628,1736233844465,-554.22,9.799e-05,2]
[347946630,1736233844477,-500.0,9.799e-05,2]
[347946632,1736233844487,-604.87,9.799e-05,2]
[347946635,1736233844498,-500.0,9.799e-05,2]
[347946637,1736233844508,-500.0,9.799e-05,2]
[347946639,1736233844519,-500.0,9.799e-05,2]
[347946641,1736233844530,-500.0,9.799e-05,2]
[347946643,1736233844541,-500.0,9.799e-05,2]
[347946645,1736233844551,-500.0,9.799e-05,2]
[347946647,1736233844562,-500.0,9.799e-05,2]
[347946649,1736233844573,-500.0,9.799e-05,2]
[347946652,1736233844584,-500.0,9.799e-05,2]
[347946654,1736233844595,-500.0,9.799e-05,2]
[347946656,1736233844606,-500.0,9.799e-05,2]
[347946658,1736233844617,-500.0,9.799e-05,2]
[347946660,1736233844627,-500.0,9.799e-05,2]
[347946662,1736233844639,-312.51,9.799e-05,2]
[347946664,1736233844650,-500.0,9.799e-05,2]
[347946666,1736233844660,-500.0,9.799e-05,2]
[347946669,1736233844672,-500.0,9.799e-05,2]
[347946671,1736233844683,-500.0,9.799e-05,2]
[347946673,1736233844694,-532.83,9.799e-05,2]
[347946675,1736233844705,-500.0,9.799e-05,2]
[347946677,1736233844715,-500.0,9.799e-05,2]
[347946679,1736233844726,-500.0,9.799e-05,2]
[347946681,1736233844737,-500.0,9.799e-05,2]
[347946683,1736233844747,-500.0,9.799e-05,2]
[347946685,1736233844759,-628.57,9.799e-05,2]
[347946688,1736233844770,-500.0,9.799e-05,2]
[347946690,1736233844781,-500.0,9.799e-05,2]
[347946692,1736233844792,-500.0,9.799e-05,2]
[347946694,1736233844803,-500.0,9.799e-05,2]
[347946696,1736233844814,-555.97,9.799e-05,2]
[347946698,1736233844824,-500.0,9.799e-05,2]
[347946701,1736233844835,-500.0,9.799e-05,2]
[347946703,1736233844846,-500.0,9.799e-05,2]
[347946705,1736233844857,-500.0,9.799e-05,2]
[347946707,1736233844868,-500.0,9.799e-05,2]
[347946709,1736233844878,-229.82,9.799e-05,2]
[347946711,1736233844889,-616.75,9.799e-05,2]
[347946713,1736233844899,-500.0,9.799e-05,2]
[347946716,1736233844910,-500.0,9.799e-05,2]
[347946718,1736233844922,-500.0,9.799e-05,2]
[347946720,1736233844932,-500.0,9.799e-05,2]
[347946722,1736233844943,-500.0,9.799e-05,2]
[347946724,1736233844954,-244.30097866,9.799e-05,2]
[347946726,1736233844965,-500.0,9.799e-05,2]
[347946728,1736233844975,-500.0,9.799e-05,2]
[347946730,1736233844985,-500.0,9.799e-05,2]
[347946732,1736233844996,-692.39,9.799e-05,2]
[347946734,1736233845009,-500.0,9.799e-05,2]
[347946736,1736233845020,-539.0,9.799e-05,2]
[347946737,1736233845030,-523.7,9.799e-05,2]
[347946738,1736233845041,-500.0,9.799e-05,2]
[347946739,1736233845051,-500.0,9.799e-05,2]
[347946740,1736233845062,-504.27,9.799e-05,2]
[347946741,1736233845074,-519.9,9.799e-05,2]
[347946742,1736233845084,-500.0,9.799e-05,2]
[347946743,1736233845096,-500.0,9.799e-05,2]
[347946744,1736233845106,-500.0,9.799e-05,2]
[347946745,1736233845116,-378.07114466,9.799e-05,2]
[347946746,1736233845127,-500.0,9.799e-05,2]
[347946747,1736233845139,-167.57121389,9.799e-05,2]
[347946748,1736233845150,-500.0,9.799e-05,2]
[347946749,1736233845162,-500.0,9.799e-05,2]
[347946750,1736233845172,-500.0,9.799e-05,2]
[347946751,1736233845186,-500.0,9.799e-05,2]
[347946752,1736233845197,-500.0,9.799e-05,2]
[347946753,1736233845208,-500.0,9.799e-05,2]
[347946754,1736233845219,-354.77274699,9.799e-05,2]
[347946755,1736233845230,-500.0,9.799e-05,2]
[347946756,1736233845240,-554.57343114,9.799e-05,2]
[347946757,1736233845253,-500.0,9.799e-05,2]
[347946758,1736233845266,-500.0,9.799e-05,2]
[347946759,1736233845278,-500.0,9.799e-05,2]
[347946760,1736233845288,-500.0,9.799e-05,2]
[347946761,1736233845299,-506.59,9.799e-05,2]
[347946762,1736233845310,-260.51,9.799e-05,2]
[347946763,1736233845320,-500.0,9.799e-05,2]
[347946764,1736233845331,-500.0,9.799e-05,2]
[347946765,1736233845343,-575.55,9.799e-05,2]
[347946767,1736233845354,-500.0,9.799e-05,2]
[347946769,1736233845365,-500.0,9.799e-05,2]
[347946770,1736233845376,-500.0,9.799e-05,2]
[347946771,1736233845387,-230.97,9.799e-05,2]
[347946772,1736233845397,-500.0,9.799e-05,2]
[347946773,1736233845409,-500.0,9.799e-05,2]
[347946774,1736233845421,-500.0,9.799e-05,2]
[347946775,1736233845431,-500.0,9.799e-05,2]
[347946776,1736233845442,-500.0,9.799e-05,2]
[347946777,1736233845453,-500.0,9.799e-05,2]
[347946778,1736233845464,-587.79,9.799e-05,2]
[347946779,1736233845474,-549.52,9.799e-05,2]
[347946780,1736233845485,-500.0,9.799e-05,2]
[347946781,1736233845495,-500.0,9.799e-05,2]
[347946782,1736233845506,-500.0,9.799e-05,2]
[347946783,1736233845516,-500.0,9.799e-05,2]
[347946784,1736233845527,-500.0,9.799e-05,2]
[347946785,1736233845537,-500.0,9.799e-05,2]
[347946786,1736233845547,-168.64,9.799e-05,2]
[347946787,1736233845558,-552.35,9.799e-05,2]
[347946788,1736233845569,-500.0,9.799e-05,2]
[347946789,1736233845580,-606.3,9.799e-05,2]
[347946790,1736233845590,-500.0,9.799e-05,2]
[347946791,1736233845601,-500.0,9.799e-05,2]
[347946792,1736233845611,-500.0,9.799e-05,2]
[347946793,1736233845622,-581.1,9.799e-05,2]
[347946794,1736233845633,-467.86,9.799e-05,2]
[347946795,1736233845644,-635.45,9.799e-05,2]
[347946796,1736233845654,-500.0,9.799e-05,2]
[347946797,1736233845665,-500.0,9.799e-05,2]
[347946798,1736233845676,-500.0,9.799e-05,2]
[347946799,1736233845686,-537.04,9.799e-05,2]
[347946800,1736233845696,-563.84,9.799e-05,2]
[347946801,1736233845706,-500.0,9.799e-05,2]
[347946802,1736233845716,-500.0,9.799e-05,2]
[347946810,1736233846038,-500.0,9.799e-05,2]
[347946812,1736233846049,-500.0,9.799e-05,2]
[347946814,1736233846059,-209.11,9.799e-05,2]
[347946816,1736233846068,-500.0,9.799e-05,2]
[347946818,1736233846078,-500.0,9.799e-05,2]
[347946820,1736233846087,-500.0,9.799e-05,2]
[347946822,1736233846096,-500.0,9.799e-05,2]
[347946824,1736233846105,-517.24,9.799e-05,2]
[347946826,1736233846116,-500.0,9.799e-05,2]
[347946828,1736233846125,-500.0,9.799e-05,2]
[347946830,1736233846137,-607.31,9.799e-05,2]
[347946832,1736233846146,-500.0,9.799e-05,2]
[347946834,1736233846156,-500.0,9.799e-05,2]
[347946836,1736233846166,-500.0,9.799e-05,2]
[347946838,1736233846175,-500.0,9.799e-05,2]
[347946840,1736233846188,-500.0,9.799e-05,2]
[347946842,1736233846198,-500.0,9.799e-05,2]
[347946843,1736233846207,-500.0,9.799e-05,2]
[347946844,1736233846217,-299.05907241,9.799e-05,2]
[347946845,1736233846227,-500.0,9.799e-05,2]
[347946846,1736233846236,-562.30765006,9.799e-05,2]
[347946847,1736233846246,-500.0,9.799e-05,2]
[347946848,1736233846256,-500.0,9.799e-05,2]
[347946849,1736233846265,-609.89280206,9.799e-05,2]
[347946850,1736233846275,-630.99,9.799e-05,2]
[347946851,1736233846284,-500.0,9.799e-05,2]
[347946852,1736233846293,-500.0,9.799e-05,2]
[347946854,1736233846302,-500.0,9.799e-05,2]
[347946856,1736233846311,-563.90284275,9.799e-05,2]
[347946858,1736233846320,-500.0,9.799e-05,2]
[347946860,1736233846329,-500.0,9.799e-05,2]
[347946862,1736233846339,-500.0,9.799e-05,2]
[347946864,1736233846348,-500.0,9.799e-05,2]
[347946866,1736233846357,-633.55,9.799e-05,2]
[347946868,1736233846366,-501.32363208,9.799e-05,2]
[347946869,1736233846375,-500.0,9.799e-05,2]
[347946872,1736233846385,-500.0,9.799e-05,2]
[347946873,1736233846394,-500.0,9.799e-05,2]
[347946876,1736233846404,-507.66,9.799e-05,2]
[347946878,1736233846415,-500.0,9.799e-05,2]
[347946880,1736233846424,-500.0,9.799e-05,2]
[347946882,1736233846434,-507.24070989,9.799e-05,2]
[347946884,1736233846444,-1399.18,9.799e-05,2]
[347946886,1736233846454,-500.0,9.799e-05,2]
[347946888,1736233846463,-500.0,9.799e-05,2]
[347946890,1736233846472,-500.0,9.799e-05,2]
[347946892,1736233846482,-500.0,9.799e-05,2]
[347946894,1736233846491,-530.84,9.799e-05,2]
[347946896,1736233846500,-500.0,9.799e-05,2]
[347946898,1736233846509,-500.0,9.799e-05,2]
[347946900,1736233846518,-500.0,9.799e-05,2]
[347946902,1736233846527,-500.0,9.799e-05,2]
[347946904,1736233846538,-500.0,9.799e-05,2]
[347946906,1736233846547,-500.0,9.799e-05,2]
[347946908,1736233846557,-500.0,9.799e-05,2]
[347946910,1736233846566,-500.0,9.799e-05,2]
[347946912,1736233846575,-500.0,9.799e-05,2]
[347946914,1736233846585,-500.0,9.799e-05,2]
[347946916,1736233846594,-500.0,9.799e-05,2]
[347946918,1736233846603,-500.0,9.799e-05,2]
[347946920,1736233846612,-500.0,9.799e-05,2]
[347946922,1736233846621,-500.0,9.799e-05,2]
[347946924,1736233846630,-500.0,9.799e-05,2]
[347946926,1736233846640,-582.02,9.799e-05,2]
[347946928,1736233846650,-500.9513178,9.799e-05,2]
[347946930,1736233846659,-539.18331874,9.799e-05,2]
[347946932,1736233846669,-500.0,9.799e-05,2]
[347946934,1736233846678,-500.0,9.799e-05,2]
[347946936,1736233846687,-773.93,9.799e-05,2]
[347946938,1736233846696,-502.45449479,9.799e-05,2]
[347946940,1736233846706,-500.0,9.799e-05,2]
[347946941,1736233846715,-500.0,9.799e-05,2]
[347946943,1736233846724,-500.83294362,9.799e-05,2]
[347946945,1736233846733,-500.0,9.799e-05,2]
[347946947,1736233846742,-500.0,9.799e-05,2]
[347946949,1736233846751,-500.0,9.799e-05,2]
[347946951,1736233846761,-500.67570349,9.799e-05,2]
[347946952,1736233846770,-500.0,9.799e-05,2]
[347946953,1736233846779,-500.0,9.799e-05,2]
[347946954,1736233846788,-500.79269661,9.799e-05,2]
[347946955,1736233846797,-500.0,9.799e-05,2]
[347946956,1736233846807,-500.0,9.799e-05,2]
[347946957,1736233846816,-500.27567898,9.799e-05,2]
[347946958,1736233846825,-500.0,9.799e-05,2]
[347946959,1736233846834,-543.59340719,9.799e-05,2]
[347946960,1736233846843,-500.88115127,9.799e-05,2]
[347946961,1736233846852,-500.0,9.799e-05,2]